[Event "*** Titled Tuesday Blitz AM"]
[Site "Chess.com"]
[Date "2020.01.07"]
[Round "6"]
[White "Gahan-MG"]
[Black "MiroVlasenko"]
[Result "0-1"]
[WhiteElo "2486"]
[BlackElo "2699"]
[TimeControl "180+2"]
[EndTime "10:14:05 PST"]
[Termination "MiroVlasenko won by resignation"]

1. e4 {[%clk 0:02:52.5]} 1... c6 {[%clk 0:02:59.6]} 2. d4 {[%clk 0:02:53.2]}
2... d5 {[%clk 0:03:01.5]} 3. e5 {[%clk 0:02:47.7]} 3... Bf5 {[%clk 0:03:02]} 4.
a3 {[%clk 0:02:47.5]} 4... e6 {[%clk 0:03:02.3]} 5. c4 {[%clk 0:02:47.2]} 5...
Ne7 {[%clk 0:03:00.5]} 6. c5 {[%clk 0:02:42.2]} 6... Nd7 {[%clk 0:03:00]} 7. Bd3
{[%clk 0:02:40.6]} 7... f6 {[%clk 0:02:59.4]} 8. f4 {[%clk 0:02:40.9]} 8... h5
{[%clk 0:02:57.5]} 9. Nc3 {[%clk 0:02:38.7]} 9... b6 {[%clk 0:02:55.6]} 10. b4
{[%clk 0:02:39.1]} 10... a5 {[%clk 0:02:56.2]} 11. Bb2 {[%clk 0:02:40.1]} 11...
axb4 {[%clk 0:02:51.2]} 12. axb4 {[%clk 0:02:42]} 12... Rxa1 {[%clk 0:02:51.7]}
13. Bxa1 {[%clk 0:02:43.1]} 13... Qa8 {[%clk 0:02:52.9]} 14. Nf3 {[%clk
0:02:38.5]} 14... Bxd3 {[%clk 0:02:52.6]} 15. Kf2 {[%clk 0:02:29.2]} 15... Be4
{[%clk 0:02:45]} 16. Nxe4 {[%clk 0:02:28.2]} 16... dxe4 {[%clk 0:02:44.7]} 17.
Nd2 {[%clk 0:02:30.1]} 17... f5 {[%clk 0:02:40]} 18. Nc4 {[%clk 0:02:28.5]}
18... Nd5 {[%clk 0:02:40]} 19. g3 {[%clk 0:02:25.1]} 19... Qa2+ {[%clk
0:02:25.4]} 20. Qe2 {[%clk 0:02:25.8]} 20... Qxe2+ {[%clk 0:02:23.4]} 21. Kxe2
{[%clk 0:02:27.7]} 21... h4 {[%clk 0:02:24.7]} 22. Rc1 {[%clk 0:02:16.8]} 22...
hxg3 {[%clk 0:02:23.2]} 23. hxg3 {[%clk 0:02:18.7]} 23... Rh2+ {[%clk
0:02:23.6]} 24. Kd1 {[%clk 0:02:18.4]} 24... Rh1+ {[%clk 0:02:16.6]} 25. Kd2
{[%clk 0:02:19.4]} 25... Rxc1 {[%clk 0:02:18.4]} 26. Kxc1 {[%clk 0:02:21.3]}
26... b5 {[%clk 0:02:16.7]} 0-1

[Event "*** Titled Tuesday Blitz AM"]
[Site "Chess.com"]
[Date "2020.01.07"]
[Round "6"]
[White "MishkaFighter"]
[Black "elm2007"]
[Result "0-1"]
[WhiteElo "2426"]
[BlackElo "2749"]
[TimeControl "180+2"]
[EndTime "10:14:30 PST"]
[Termination "elm2007 won by checkmate"]

1. d3 {[%clk 0:03:01.9]} 1... Nf6 {[%clk 0:03:00.6]} 2. e3 {[%clk 0:03:03.8]}
2... d6 {[%clk 0:03:02.1]} 3. Nd2 {[%clk 0:03:04.1]} 3... g6 {[%clk 0:03:04]} 4.
Ne2 {[%clk 0:03:06]} 4... Bg7 {[%clk 0:03:05.9]} 5. g3 {[%clk 0:03:07.5]} 5...
O-O {[%clk 0:03:07.8]} 6. Bg2 {[%clk 0:03:09.4]} 6... e5 {[%clk 0:03:09.5]} 7.
b3 {[%clk 0:03:10.5]} 7... Nc6 {[%clk 0:03:11.4]} 8. Bb2 {[%clk 0:03:12.1]} 8...
Ne8 {[%clk 0:03:12.8]} 9. O-O {[%clk 0:03:13.4]} 9... f5 {[%clk 0:03:14.4]} 10.
c4 {[%clk 0:03:14]} 10... h6 {[%clk 0:03:14.5]} 11. a3 {[%clk 0:03:15.5]} 11...
g5 {[%clk 0:03:15.1]} 12. b4 {[%clk 0:03:17]} 12... Rb8 {[%clk 0:03:14.6]} 13.
b5 {[%clk 0:03:18.2]} 13... Ne7 {[%clk 0:03:15.5]} 14. a4 {[%clk 0:03:19.7]}
14... Be6 {[%clk 0:03:16.6]} 15. a5 {[%clk 0:03:21]} 15... f4 {[%clk 0:03:17.4]}
16. exf4 {[%clk 0:03:21.1]} 16... exf4 {[%clk 0:03:19.3]} 17. Bxg7 {[%clk
0:03:22.5]} 17... Nxg7 {[%clk 0:03:19.1]} 18. Re1 {[%clk 0:03:24.4]} 18... Qd7
{[%clk 0:03:19.1]} 19. Nd4 {[%clk 0:03:20.7]} 19... Bh3 {[%clk 0:03:18.8]} 20.
Qb3 {[%clk 0:03:22.2]} 20... Kh8 {[%clk 0:03:18.6]} 21. Rxe7 {[%clk 0:03:21.3]}
21... Qxe7 {[%clk 0:03:19.3]} 22. Bxh3 {[%clk 0:03:22.8]} 22... fxg3 {[%clk
0:03:20.8]} 23. hxg3 {[%clk 0:03:23.6]} 23... Qf6 {[%clk 0:03:18.2]} 24. N2f3
{[%clk 0:03:24.7]} 24... h5 {[%clk 0:03:19.4]} 25. Re1 {[%clk 0:02:37.9]} 25...
g4 {[%clk 0:03:20]} 26. Bg2 {[%clk 0:02:34.4]} 26... gxf3 {[%clk 0:03:18.8]} 27.
Nxf3 {[%clk 0:02:36.3]} 27... Rbe8 {[%clk 0:03:11.5]} 28. Rxe8 {[%clk
0:02:36.1]} 28... Rxe8 {[%clk 0:03:13.4]} 29. a6 {[%clk 0:02:35.8]} 29... bxa6
{[%clk 0:03:13.6]} 30. bxa6 {[%clk 0:02:37.7]} 30... h4 {[%clk 0:03:05.4]} 31.
Nxh4 {[%clk 0:02:38.3]} 31... Re1+ {[%clk 0:03:05.8]} 32. Bf1 {[%clk 0:02:37.1]}
32... Qa1 {[%clk 0:03:06.3]} 33. Qb8+ {[%clk 0:02:35.8]} 33... Kh7 {[%clk
0:03:06.7]} 34. Qxa7 {[%clk 0:02:37.7]} 34... Rxf1+ {[%clk 0:03:07.6]} 35. Kg2
{[%clk 0:02:39.6]} 35... Rg1+ {[%clk 0:03:09]} 36. Kf3 {[%clk 0:02:37.7]} 36...
Qd1+ {[%clk 0:03:01.5]} 37. Ke3 {[%clk 0:02:38.9]} 37... Qe1+ {[%clk 0:03:01.9]}
38. Kf3 {[%clk 0:02:39.2]} 38... Qd1+ {[%clk 0:03:03.3]} 39. Ke3 {[%clk
0:02:40.6]} 39... Re1+ {[%clk 0:03:04.1]} 40. Kd4 {[%clk 0:02:40.9]} 40... Re5
{[%clk 0:03:02.1]} 41. Kc3 {[%clk 0:02:35.6]} 41... Qc1+ {[%clk 0:03:01.5]} 42.
Kb3 {[%clk 0:02:34.9]} 42... Re2 {[%clk 0:02:55.8]} 43. Qd4 {[%clk 0:02:36.3]}
43... Qb1+ {[%clk 0:02:55.3]} 44. Ka3 {[%clk 0:02:34.6]} 44... Ra2# {[%clk
0:02:53]} 0-1

[Event "*** Titled Tuesday Blitz AM"]
[Site "Chess.com"]
[Date "2020.01.07"]
[Round "6"]
[White "SmirnovAlexandrA"]
[Black "ChessyInstinct"]
[Result "0-1"]
[WhiteElo "2117"]
[BlackElo "2428"]
[TimeControl "180+2"]
[EndTime "10:14:39 PST"]
[Termination "ChessyInstinct won by resignation"]

1. e4 {[%clk 0:03:01.9]} 1... e5 {[%clk 0:02:59.5]} 2. Nc3 {[%clk 0:03:00]} 2...
Nc6 {[%clk 0:02:57.5]} 3. f4 {[%clk 0:03:01]} 3... Nf6 {[%clk 0:02:54.8]} 4. Nf3
{[%clk 0:03:01.9]} 4... Bb4 {[%clk 0:02:51.9]} 5. d3 {[%clk 0:02:58.5]} 5... d6
{[%clk 0:02:51.4]} 6. f5 {[%clk 0:02:56.4]} 6... d5 {[%clk 0:02:51]} 7. a3
{[%clk 0:02:56.6]} 7... Bxc3+ {[%clk 0:02:50.3]} 8. bxc3 {[%clk 0:02:58.3]} 8...
dxe4 {[%clk 0:02:51.9]} 9. Ng5 {[%clk 0:02:52.9]} 9... Bxf5 {[%clk 0:02:49.5]}
10. Be2 {[%clk 0:02:50.7]} 10... h6 {[%clk 0:02:41.5]} 11. Nxe4 {[%clk
0:02:49.2]} 11... Nxe4 {[%clk 0:02:41.4]} 12. dxe4 {[%clk 0:02:51.1]} 12...
Qxd1+ {[%clk 0:02:42]} 13. Bxd1 {[%clk 0:02:53]} 13... Bxe4 {[%clk 0:02:42.8]}
14. O-O {[%clk 0:02:54]} 14... O-O {[%clk 0:02:36.8]} 15. Be3 {[%clk 0:02:55.4]}
15... b6 {[%clk 0:02:33.3]} 16. Rc1 {[%clk 0:02:52.9]} 16... Rad8 {[%clk
0:02:32.6]} 17. Be2 {[%clk 0:02:54.8]} 17... Na5 {[%clk 0:02:22.7]} 18. Rf2
{[%clk 0:02:53.4]} 18... f6 {[%clk 0:02:14.6]} 19. g4 {[%clk 0:02:52.4]} 19...
Rd6 {[%clk 0:02:11.2]} 20. h4 {[%clk 0:02:51.6]} 20... Rfd8 {[%clk 0:02:11.9]}
21. Kf1 {[%clk 0:02:51.3]} 21... Nc6 {[%clk 0:01:51.4]} 22. Ke1 {[%clk
0:02:49.4]} 22... Ne7 {[%clk 0:01:51.8]} 23. c4 {[%clk 0:02:45.3]} 23... c5
{[%clk 0:01:49.3]} 24. a4 {[%clk 0:02:43.9]} 24... Nc6 {[%clk 0:01:50.1]} 25. c3
{[%clk 0:02:42.8]} 25... Na5 {[%clk 0:01:48.3]} 26. g5 {[%clk 0:02:41.7]} 26...
hxg5 {[%clk 0:01:47.2]} 27. hxg5 {[%clk 0:02:43.6]} 27... f5 {[%clk 0:01:29.3]}
28. Bf1 {[%clk 0:02:43.5]} 28... f4 {[%clk 0:01:26.7]} 29. Bd2 {[%clk
0:02:43.8]} 29... Nb3 {[%clk 0:01:25.1]} 0-1

[Event "*** Titled Tuesday Blitz AM"]
[Site "Chess.com"]
[Date "2020.01.07"]
[Round "6"]
[White "OparinGrigoriy"]
[Black "DrVelja"]
[Result "1-0"]
[WhiteElo "3034"]
[BlackElo "2734"]
[TimeControl "180+2"]
[EndTime "10:14:49 PST"]
[Termination "OparinGrigoriy won by resignation"]

1. d4 {[%clk 0:03:01.6]} 1... Nf6 {[%clk 0:03:00.5]} 2. Nf3 {[%clk 0:03:03.2]}
2... g6 {[%clk 0:03:01.9]} 3. g3 {[%clk 0:03:03.9]} 3... Bg7 {[%clk 0:03:03.4]}
4. c4 {[%clk 0:03:05.8]} 4... O-O {[%clk 0:03:03.8]} 5. Bg2 {[%clk 0:03:07]}
5... c6 {[%clk 0:03:04.9]} 6. O-O {[%clk 0:03:06.3]} 6... d5 {[%clk 0:03:06.3]}
7. Qa4 {[%clk 0:03:05.8]} 7... Nbd7 {[%clk 0:03:03.3]} 8. cxd5 {[%clk
0:03:03.6]} 8... Nb6 {[%clk 0:03:04.4]} 9. Qb3 {[%clk 0:03:05.2]} 9... Qxd5
{[%clk 0:03:05.1]} 10. Qb4 {[%clk 0:03:06.3]} 10... Qh5 {[%clk 0:02:37.6]} 11.
h4 {[%clk 0:02:54.1]} 11... Re8 {[%clk 0:02:04]} 12. Nc3 {[%clk 0:02:48.9]}
12... Nbd5 {[%clk 0:01:50.5]} 13. Qb3 {[%clk 0:02:48.3]} 13... Be6 {[%clk
0:01:24.9]} 14. Qxb7 {[%clk 0:02:44.8]} 14... Rab8 {[%clk 0:01:08.6]} 15. Qxc6
{[%clk 0:02:44.3]} 15... Nb4 {[%clk 0:01:08]} 16. Qa4 {[%clk 0:02:43.3]} 16...
Bd7 {[%clk 0:00:44.4]} 17. Qd1 {[%clk 0:02:43.8]} 17... Bf5 {[%clk 0:00:32.5]}
18. Bf4 {[%clk 0:02:38.8]} 18... Bc8 {[%clk 0:00:33.9]} 1-0

[Event "*** Titled Tuesday Blitz AM"]
[Site "Chess.com"]
[Date "2020.01.07"]
[Round "6"]
[White "muran29"]
[Black "Leonid_Starozhilov"]
[Result "0-1"]
[WhiteElo "2509"]
[BlackElo "2700"]
[TimeControl "180+2"]
[EndTime "10:15:04 PST"]
[Termination "Leonid_Starozhilov won by resignation"]

1. d4 {[%clk 0:02:48.1]} 1... Nf6 {[%clk 0:03:00]} 2. c4 {[%clk 0:02:45.1]} 2...
g6 {[%clk 0:02:57.3]} 3. Nc3 {[%clk 0:02:43.7]} 3... Bg7 {[%clk 0:02:58.6]} 4.
e4 {[%clk 0:02:29.1]} 4... d6 {[%clk 0:02:59.3]} 5. Nf3 {[%clk 0:02:27.4]} 5...
Bg4 {[%clk 0:02:58.5]} 6. Be2 {[%clk 0:02:15.8]} 6... O-O {[%clk 0:02:58.7]} 7.
Be3 {[%clk 0:02:01.4]} 7... Nfd7 {[%clk 0:02:58.7]} 8. Qd2 {[%clk 0:02:01]} 8...
e5 {[%clk 0:02:59.5]} 9. d5 {[%clk 0:02:01.8]} 9... f5 {[%clk 0:03:00.6]} 10.
Bh6 {[%clk 0:01:59.2]} 10... Bxf3 {[%clk 0:02:44.6]} 11. Bxf3 {[%clk 0:01:55.5]}
11... f4 {[%clk 0:02:40.8]} 12. Bxg7 {[%clk 0:01:56]} 12... Kxg7 {[%clk
0:02:42.7]} 13. Bg4 {[%clk 0:01:57.4]} 13... Nf6 {[%clk 0:02:43]} 14. Be6 {[%clk
0:01:57.2]} 14... Na6 {[%clk 0:02:43.2]} 15. g3 {[%clk 0:01:51.3]} 15... Nc5
{[%clk 0:02:38.5]} 16. gxf4 {[%clk 0:01:50.1]} 16... Nfxe4 {[%clk 0:02:39.1]}
17. Nxe4 {[%clk 0:01:40.1]} 17... Nxe4 {[%clk 0:02:39.2]} 18. Qe3 {[%clk
0:01:22.9]} 18... Rxf4 {[%clk 0:02:39.5]} 19. h4 {[%clk 0:00:52.7]} 19... Nxf2
{[%clk 0:02:28.7]} 20. Rh2 {[%clk 0:00:43.7]} 20... Re4 {[%clk 0:02:27.3]} 21.
Kxf2 {[%clk 0:00:44.9]} 21... Rxe3 {[%clk 0:02:28.4]} 22. Kxe3 {[%clk
0:00:46.8]} 0-1

[Event "*** Titled Tuesday Blitz AM"]
[Site "Chess.com"]
[Date "2020.01.07"]
[Round "6"]
[White "Annawel"]
[Black "RaunakSadhwani2005"]
[Result "1-0"]
[WhiteElo "2991"]
[BlackElo "2763"]
[TimeControl "180+2"]
[EndTime "10:15:08 PST"]
[Termination "Annawel won by resignation"]

1. e4 {[%clk 0:03:01.9]} 1... e5 {[%clk 0:03:01.4]} 2. Nf3 {[%clk 0:03:02]} 2...
Nc6 {[%clk 0:03:02.9]} 3. Bb5 {[%clk 0:03:02.5]} 3... a6 {[%clk 0:03:04]} 4. Ba4
{[%clk 0:03:03.6]} 4... Nf6 {[%clk 0:03:05]} 5. O-O {[%clk 0:03:04.4]} 5... Be7
{[%clk 0:03:06.3]} 6. Re1 {[%clk 0:03:04.7]} 6... b5 {[%clk 0:03:05.4]} 7. Bb3
{[%clk 0:03:05.9]} 7... O-O {[%clk 0:03:00.4]} 8. c3 {[%clk 0:03:07]} 8... d5
{[%clk 0:03:00.4]} 9. exd5 {[%clk 0:03:08.9]} 9... Nxd5 {[%clk 0:03:02.2]} 10.
Nxe5 {[%clk 0:03:10.2]} 10... Nxe5 {[%clk 0:03:04.1]} 11. Rxe5 {[%clk
0:03:12.1]} 11... c6 {[%clk 0:03:05.6]} 12. d3 {[%clk 0:03:13.1]} 12... Bd6
{[%clk 0:03:05.8]} 13. Re1 {[%clk 0:03:14.7]} 13... Qh4 {[%clk 0:03:07.1]} 14.
g3 {[%clk 0:03:16.2]} 14... Qh3 {[%clk 0:03:08.6]} 15. Re4 {[%clk 0:02:59.2]}
15... Bd7 {[%clk 0:02:38.1]} 16. Nd2 {[%clk 0:02:53.4]} 16... Rae8 {[%clk
0:02:38.4]} 17. Nf1 {[%clk 0:02:48.5]} 17... Rxe4 {[%clk 0:02:15]} 18. dxe4
{[%clk 0:02:48.2]} 18... Bg4 {[%clk 0:02:16.3]} 19. Qd3 {[%clk 0:02:46.3]} 19...
Nf6 {[%clk 0:02:08.3]} 20. Bg5 {[%clk 0:02:23.9]} 20... Bc7 {[%clk 0:02:08.4]}
21. Bxf6 {[%clk 0:02:24.5]} 21... gxf6 {[%clk 0:02:09.7]} 22. Bd1 {[%clk
0:02:25.7]} 22... Rd8 {[%clk 0:02:09.7]} 23. Bxg4 {[%clk 0:02:26.7]} 23... Qxg4
{[%clk 0:02:08.7]} 24. Qe3 {[%clk 0:02:28]} 24... Re8 {[%clk 0:02:07.1]} 25. Re1
{[%clk 0:02:27.8]} 25... f5 {[%clk 0:02:06]} 26. Qa7 {[%clk 0:02:24]} 26... Re7
{[%clk 0:01:47.1]} 27. Ne3 {[%clk 0:02:21.7]} 27... Qxe4 {[%clk 0:01:47.4]} 28.
Ng2 {[%clk 0:02:22.7]} 1-0

[Event "*** Titled Tuesday Blitz AM"]
[Site "Chess.com"]
[Date "2020.01.07"]
[Round "6"]
[White "Triumphmate"]
[Black "Last7Samurai"]
[Result "1/2-1/2"]
[WhiteElo "2620"]
[BlackElo "2826"]
[TimeControl "180+2"]
[EndTime "10:15:53 PST"]
[Termination "Game drawn by agreement"]

1. e4 {[%clk 0:03:01.5]} 1... e5 {[%clk 0:03:00.8]} 2. Nf3 {[%clk 0:03:02.9]}
2... Nc6 {[%clk 0:03:01.7]} 3. Nc3 {[%clk 0:03:04.3]} 3... Nf6 {[%clk
0:03:02.8]} 4. Bb5 {[%clk 0:03:05.6]} 4... Nd4 {[%clk 0:03:02.9]} 5. Ba4 {[%clk
0:03:04.9]} 5... Nxf3+ {[%clk 0:02:55.8]} 6. Qxf3 {[%clk 0:03:03]} 6... Bc5
{[%clk 0:02:55]} 7. d3 {[%clk 0:03:00.5]} 7... h6 {[%clk 0:02:54.8]} 8. Qg3
{[%clk 0:02:58]} 8... Qe7 {[%clk 0:02:50.4]} 9. O-O {[%clk 0:02:52.1]} 9... g5
{[%clk 0:02:40.6]} 10. Be3 {[%clk 0:02:46]} 10... Bb6 {[%clk 0:02:38]} 11. Rad1
{[%clk 0:02:39.2]} 11... c6 {[%clk 0:02:38.4]} 12. d4 {[%clk 0:02:35.8]} 12...
d6 {[%clk 0:02:35.3]} 13. dxe5 {[%clk 0:02:30.5]} 13... dxe5 {[%clk 0:02:37.2]}
14. Nd5 {[%clk 0:02:19.1]} 14... Nxd5 {[%clk 0:02:37.6]} 15. exd5 {[%clk
0:02:18.6]} 15... Bd7 {[%clk 0:02:39.2]} 16. dxc6 {[%clk 0:02:12.9]} 16... Bxc6
{[%clk 0:02:41.1]} 17. Bxc6+ {[%clk 0:02:03.7]} 17... bxc6 {[%clk 0:02:43]} 18.
Qg4 {[%clk 0:02:05.1]} 18... O-O {[%clk 0:02:40.3]} 19. Rd7 {[%clk 0:02:02.4]}
19... Qe6 {[%clk 0:02:41.2]} 20. Qxe6 {[%clk 0:01:58.4]} 20... fxe6 {[%clk
0:02:43.1]} 21. Rfd1 {[%clk 0:01:54.7]} 21... Rf6 {[%clk 0:02:43]} 22. h3 {[%clk
0:01:51.4]} 22... Rb8 {[%clk 0:02:40.1]} 23. Re7 {[%clk 0:01:45.9]} 23... Bxe3
{[%clk 0:02:37.1]} 24. fxe3 {[%clk 0:01:47.3]} 24... Rf7 {[%clk 0:02:38.8]} 25.
Rxe6 {[%clk 0:01:43.4]} 25... Rxb2 {[%clk 0:02:39.5]} 26. Rxc6 {[%clk
0:01:40.5]} 26... Rxa2 {[%clk 0:02:40.8]} 27. Rd8+ {[%clk 0:01:37]} 27... Kg7
{[%clk 0:02:41.7]} 28. Rdd6 {[%clk 0:01:34.7]} 28... a5 {[%clk 0:02:41.8]} 29.
Rxh6 {[%clk 0:01:33.1]} 29... Rf5 {[%clk 0:02:41]} 30. e4 {[%clk 0:01:30]} 30...
Rf4 {[%clk 0:02:42.2]} 31. Kh2 {[%clk 0:01:24.1]} 31... Rxc2 {[%clk 0:02:40.6]}
32. Rcg6+ {[%clk 0:01:22.1]} 32... Kf8 {[%clk 0:02:41.7]} 33. Rxg5 {[%clk
0:01:17.2]} 33... Rxe4 {[%clk 0:02:43.2]} 34. Rf6+ {[%clk 0:01:13.8]} 34... Ke7
{[%clk 0:02:44.3]} 35. Rh6 {[%clk 0:01:09]} 35... a4 {[%clk 0:02:38.6]} 36. Rg7+
{[%clk 0:01:06.1]} 36... Kf8 {[%clk 0:02:39.9]} 37. Ra7 {[%clk 0:01:05.3]} 37...
Kg8 {[%clk 0:02:41.1]} 38. Rg6+ {[%clk 0:01:03.3]} 38... Kf8 {[%clk 0:02:41]}
39. Rh6 {[%clk 0:01:02.7]} 39... Kg8 {[%clk 0:02:42.1]} 40. Rg6+ {[%clk
0:01:04.1]} 40... Kf8 {[%clk 0:02:41.6]} 1/2-1/2

[Event "*** Titled Tuesday Blitz AM"]
[Site "Chess.com"]
[Date "2020.01.07"]
[Round "6"]
[White "ristingho"]
[Black "TBergh98"]
[Result "1-0"]
[WhiteElo "2512"]
[BlackElo "2357"]
[TimeControl "180+2"]
[EndTime "10:15:58 PST"]
[Termination "ristingho won by resignation"]

1. d4 {[%clk 0:03:01.9]} 1... Nf6 {[%clk 0:03:00.9]} 2. c4 {[%clk 0:03:00.9]}
2... d6 {[%clk 0:03:02]} 3. Nc3 {[%clk 0:03:00.3]} 3... g6 {[%clk 0:03:03.3]} 4.
Nf3 {[%clk 0:03:01.5]} 4... Bg7 {[%clk 0:03:04.7]} 5. Bg5 {[%clk 0:03:01.8]}
5... h6 {[%clk 0:03:03.3]} 6. Bh4 {[%clk 0:03:02.1]} 6... g5 {[%clk 0:03:04.4]}
7. Bg3 {[%clk 0:03:03]} 7... O-O {[%clk 0:03:04.9]} 8. e3 {[%clk 0:03:03.6]}
8... b6 {[%clk 0:03:02.1]} 9. Nd2 {[%clk 0:03:02.7]} 9... Bf5 {[%clk 0:02:59.9]}
10. h4 {[%clk 0:03:01]} 10... Na6 {[%clk 0:02:55.1]} 11. hxg5 {[%clk 0:03:00.3]}
11... hxg5 {[%clk 0:02:57]} 12. a3 {[%clk 0:02:46.6]} 12... c5 {[%clk
0:02:57.1]} 13. d5 {[%clk 0:02:42]} 13... Nc7 {[%clk 0:02:54]} 14. e4 {[%clk
0:02:42.9]} 14... Bg6 {[%clk 0:02:52.6]} 15. Be2 {[%clk 0:02:32.7]} 15... a6
{[%clk 0:02:49.9]} 16. a4 {[%clk 0:02:31.4]} 16... b5 {[%clk 0:02:50.1]} 17.
axb5 {[%clk 0:02:32]} 17... axb5 {[%clk 0:02:51.2]} 18. Rxa8 {[%clk 0:02:33.1]}
18... Qxa8 {[%clk 0:02:53.1]} 19. cxb5 {[%clk 0:02:34.7]} 19... Rb8 {[%clk
0:02:46.3]} 20. O-O {[%clk 0:02:24.2]} 20... Qa5 {[%clk 0:02:45.3]} 21. e5
{[%clk 0:02:20.4]} 21... Nfxd5 {[%clk 0:02:35.5]} 22. exd6 {[%clk 0:02:13.5]}
22... exd6 {[%clk 0:02:23.4]} 23. Nxd5 {[%clk 0:02:04.9]} 23... Nxd5 {[%clk
0:02:22.1]} 24. Nc4 {[%clk 0:02:04.2]} 24... Qxb5 {[%clk 0:01:18]} 25. Qxd5
{[%clk 0:01:58.9]} 25... Rd8 {[%clk 0:01:18.9]} 26. Rd1 {[%clk 0:01:34.5]} 26...
Bd4 {[%clk 0:01:14]} 27. Rxd4 {[%clk 0:01:29.7]} 1-0

[Event "*** Titled Tuesday Blitz AM"]
[Site "Chess.com"]
[Date "2020.01.07"]
[Round "6"]
[White "M1711"]
[Black "PaulfromSPb"]
[Result "0-1"]
[WhiteElo "2530"]
[BlackElo "2674"]
[TimeControl "180+2"]
[EndTime "10:16:39 PST"]
[Termination "PaulfromSPb won by resignation"]

1. d4 {[%clk 0:02:57.4]} 1... Nf6 {[%clk 0:03:00.3]} 2. Bg5 {[%clk 0:02:58.4]}
2... d5 {[%clk 0:03:00.4]} 3. e3 {[%clk 0:02:58.9]} 3... c5 {[%clk 0:03:00.4]}
4. Bxf6 {[%clk 0:02:58.2]} 4... gxf6 {[%clk 0:03:01]} 5. dxc5 {[%clk 0:02:56.2]}
5... Nc6 {[%clk 0:02:59.9]} 6. c4 {[%clk 0:02:53.2]} 6... d4 {[%clk 0:02:56.4]}
7. exd4 {[%clk 0:02:53.6]} 7... Qxd4 {[%clk 0:02:56.7]} 8. Nc3 {[%clk
0:02:50.2]} 8... e6 {[%clk 0:02:54.4]} 9. Nf3 {[%clk 0:02:45]} 9... Qxd1+ {[%clk
0:02:53.1]} 10. Rxd1 {[%clk 0:02:46.9]} 10... Bxc5 {[%clk 0:02:54.2]} 11. a3
{[%clk 0:02:45.2]} 11... Ke7 {[%clk 0:02:54.2]} 12. Be2 {[%clk 0:02:41.4]} 12...
f5 {[%clk 0:02:54.7]} 13. O-O {[%clk 0:02:40.8]} 13... a5 {[%clk 0:02:53.4]} 14.
Na4 {[%clk 0:02:38.6]} 14... Ba7 {[%clk 0:02:54.1]} 15. c5 {[%clk 0:02:28.6]}
15... Rg8 {[%clk 0:02:46.7]} 16. Bb5 {[%clk 0:02:25.8]} 16... Bd7 {[%clk
0:02:46.9]} 17. Rd2 {[%clk 0:02:24.6]} 17... Ne5 {[%clk 0:02:36.7]} 18. Nxe5
{[%clk 0:01:59.4]} 18... Bxb5 {[%clk 0:02:36.3]} 19. c6 {[%clk 0:01:28.5]} 19...
Rad8 {[%clk 0:01:51.8]} 20. Rfd1 {[%clk 0:01:15]} 20... Rxd2 {[%clk 0:01:46.7]}
21. Rxd2 {[%clk 0:01:14.8]} 21... Bxa4 {[%clk 0:01:46.5]} 22. Rd7+ {[%clk
0:01:09.3]} 22... Kf6 {[%clk 0:01:47.4]} 23. Rxb7 {[%clk 0:01:06.8]} 23... Kxe5
{[%clk 0:01:46.8]} 24. Rxa7 {[%clk 0:01:08.1]} 24... Bxc6 {[%clk 0:01:48.2]} 25.
Rxa5+ {[%clk 0:01:08.8]} 25... Kf6 {[%clk 0:01:46.2]} 26. g3 {[%clk 0:01:08]}
26... Bf3 {[%clk 0:01:45.9]} 27. Rc5 {[%clk 0:01:03.5]} 27... Rd8 {[%clk
0:01:44.7]} 28. Rc1 {[%clk 0:01:04.3]} 28... Rd2 {[%clk 0:01:45]} 29. a4 {[%clk
0:00:56.4]} 29... Rxb2 {[%clk 0:01:45.7]} 30. Ra1 {[%clk 0:00:57.4]} 30... Ke5
{[%clk 0:01:33.2]} 31. a5 {[%clk 0:00:58]} 31... Rb7 {[%clk 0:01:33.6]} 32. a6
{[%clk 0:00:58.6]} 32... Ra7 {[%clk 0:01:34.4]} 33. Ra3 {[%clk 0:00:59.9]} 33...
Bc6 {[%clk 0:01:32.4]} 34. Kf1 {[%clk 0:00:58.9]} 34... Rxa6 {[%clk 0:01:32.3]}
0-1

[Event "*** Titled Tuesday Blitz AM"]
[Site "Chess.com"]
[Date "2020.01.07"]
[Round "6"]
[White "LiamVrolijk"]
[Black "MartinMatthiesen"]
[Result "0-1"]
[WhiteElo "2790"]
[BlackElo "2598"]
[TimeControl "180+2"]
[EndTime "10:16:40 PST"]
[Termination "MartinMatthiesen won by resignation"]

1. d4 {[%clk 0:03:01.8]} 1... Nf6 {[%clk 0:02:56.1]} 2. c4 {[%clk 0:03:02.9]}
2... e6 {[%clk 0:02:53.8]} 3. g3 {[%clk 0:03:04.1]} 3... c5 {[%clk 0:02:50.3]}
4. Nf3 {[%clk 0:03:05.4]} 4... cxd4 {[%clk 0:02:50.2]} 5. Nxd4 {[%clk
0:03:07.3]} 5... d5 {[%clk 0:02:50]} 6. Bg2 {[%clk 0:03:07.6]} 6... e5 {[%clk
0:02:48.7]} 7. Nf3 {[%clk 0:03:08.9]} 7... d4 {[%clk 0:02:49.4]} 8. O-O {[%clk
0:03:10.3]} 8... Nc6 {[%clk 0:02:49.2]} 9. e3 {[%clk 0:03:11.7]} 9... Be7 {[%clk
0:02:46.7]} 10. exd4 {[%clk 0:03:12.9]} 10... exd4 {[%clk 0:02:46.5]} 11. b4
{[%clk 0:03:14.6]} 11... Nxb4 {[%clk 0:02:24.3]} 12. Nxd4 {[%clk 0:03:13.9]}
12... O-O {[%clk 0:02:23.1]} 13. Be3 {[%clk 0:03:15.1]} 13... Qc7 {[%clk
0:02:02.6]} 14. Qb3 {[%clk 0:03:02.5]} 14... Nc6 {[%clk 0:01:54.7]} 15. Nc3
{[%clk 0:03:01.1]} 15... Na5 {[%clk 0:01:37.7]} 16. Qa4 {[%clk 0:03:02.8]} 16...
Qxc4 {[%clk 0:01:23.6]} 17. Qxa5 {[%clk 0:03:02]} 17... Bb4 {[%clk 0:01:24.3]}
18. Qb5 {[%clk 0:03:01.3]} 18... Qxc3 {[%clk 0:01:24]} 19. Rfc1 {[%clk
0:03:02.7]} 19... a6 {[%clk 0:00:54.9]} 20. Qa4 {[%clk 0:02:50.7]} 20... Qa3
{[%clk 0:00:43.1]} 21. Qd1 {[%clk 0:02:36.4]} 21... Qa5 {[%clk 0:00:36.8]} 22.
Rab1 {[%clk 0:02:30.6]} 22... Ba3 {[%clk 0:00:26.5]} 23. Rc3 {[%clk 0:02:28.8]}
23... Qxc3 {[%clk 0:00:26.5]} 0-1